Cogmind - Beta 9.3 @@@ ROGUE MODE // 2019.12.17 @ 12:17:52 // Winter2019/RPGLIKE Player: cptwinky Result: Self-destructed Performance ------------- Evolutions (1) 500 Regions Visited (4) 800 Robots Destroyed (123) 615 Value Destroyed (3047) 3047 Prototype IDs (6) 120 Alien Tech Used (0) 0 Bonus (222) 222 TOTAL SCORE: 5304 Bonus ------- High Alert Combat Kills 292 Friendly Fire -70 Cogmind --------- Core Integrity 284/800 Matter 290/300 Energy 140/280 System Corruption 5% Temperature Cool (230) Movement Rolling (100) Ox1 Location -9/Mines Parts ------- > --- POWER (1) -------- Heavy Ion Engine > --- PROPULSION (2) --- Armored Treads Armored Wheel > --- UTILITY (5) ------ Improved Terrain Scanner Armor Integrity Analyzer Medium Armor Plating Hardened Light Armor Plating > --- WEAPON (3) ------- EM Shotgun EM Shotgun Improved EM Shotgun > --- INVENTORY (2) ---- Protomatter-38 Mining Claw Peak State ------------ > --- POWER ------------ Heavy Ion Engine > --- PROPULSION ------- Armored Treads Armored Wheel > --- UTILITY ---------- Improved Terrain Scanner Armor Integrity Analyzer Improved Weapon Shielding Medium Armor Plating Hardened Light Armor Plating > --- WEAPON ----------- EM Shotgun EM Shotgun Improved EM Shotgun > --- INVENTORY -------- Protomatter Mining Claw [Rating: 26] Favorites ----------- Power Ion Engine Engine Ion Engine Propulsion Armored Wheel Treads Armored Treads Wheel Armored Wheel Utility Improved Terrain Scanner Device Improved Terrain Scanner Processor Targeting Computer Protection Light Armor Plating Weapon EM Pulse Gun Energy Gun EM Pulse Gun Ballistic Gun Assault Rifle Launcher Rocket Launcher Slashing Weapon Katana Build | -11 -10 -10 -9 -9 ------- Run | Scr Mat Min Mat Min Slots Evolved 7 | 3 . 2 2 . Power . | . . . . . Propulsion 1 | 1 . . . . Utility 4 | 1 . 2 1 . Weapon 2 | 1 . . 1 . Parts Attached 31 | 7 2 6 15 1 Power 2 | 1 . . 1 . Engine 2 | 1 . . 1 . Core . | . . . . . Reactor . | . . . . . Propulsion 5 | 2 . 1 2 . Treads 3 | 1 . 1 1 . Leg . | . . . . . Wheel 2 | 1 . . 1 . Hover . | . . . . . Flight . | . . . . . Utility 9 | 2 . 2 5 . Device 2 | 2 . . . . Storage . | . . . . . Processor 2 | . . 1 1 . Hackware . | . . . . . Protection 5 | . . 1 4 . Artifact . | . . . . . Weapon 15 | 2 2 3 7 1 Energy Gun 11 | . 2 2 6 1 Energy Cannon . | . . . . . Ballistic Gun 2 | 2 . . . . Ballistic Cannon . | . . . . . Launcher 1 | . . 1 . . Special Weapon . | . . . . . Impact Weapon . | . . . . . Slashing Weapon 1 | . . . 1 . Piercing Weapon . | . . . . . Special Melee Weapon . | . . . . . Unidentified Prototypes 2 | . . . 2 . Parts Lost 1 | . . . . 1 Power . | . . . . . Propulsion . | . . . . . Utility 1 | . . . . 1 Weapon . | . . . . . Highest Loss Streak 1 | . . . . 1 Average Slot Usage (%) 99 | . 100 99 99 98 Engine 11 | . 14 11 10 9 Treads 11 | . 14 11 10 9 Wheel 11 | . 14 11 10 9 Device 17 | . 28 23 10 9 Processor 6 | . . 7 10 9 Protection 13 | . . 7 20 25 Energy Gun 21 | . 18 22 22 27 Ballistic Gun 2 | . 9 . . . Slashing Weapon 3 | . . . 5 . Naked Turns . | . . . . . Heaviest Build 32 | 11 11 16 32 32 Greatest Support 25 | 10 20 20 25 17 Greatest Overweight (x) 3 | 1 1 3 1 1 Average Overweight (x) . | . . 1 . 1 Largest Inventory Capacity 2 | . 1 1 2 2 Average Capacity 1 | . . 1 1 2 Most Carried 2 | . 1 1 2 2 Average Carried . | . . . 1 2 Final Capacity 2 | . 1 1 2 2 Final Carried 2 | . . 1 2 2 Class Distribution -------------------- 35% | Mutant 29% | Assassin 28% | Skirmisher 4% | Tank Dominant Class ---------------- Mutant | -10/Materials Skirmisher | -10/Mines Assassin | -9/Materials Tank | -9/Mines Resources | -11 -10 -10 -9 -9 ----------- Run | Scr Mat Min Mat Min Matter Collected 831 | 300 278 71 182 . Remotely 422 | 73 278 71 . . Salvage Created 3844 | 111 1140 138 2447 8 Parts 304 | 12 84 19 189 . Haulers Intercepted 8 | . 2 . 6 . Recyclers Shooed 2 | 1 1 . . . Parts Field Recycled . | . . . . . Retrieved Matter . | . . . . . Parts Self-Destructed . | . . . . . Prevented . | . . . . . Kills | -11 -10 -10 -9 -9 ------- Run | Scr Mat Min Mat Min Combat Hostiles Destroyed 79 | . 24 7 47 1 Guns 67 | . 23 3 40 1 AOE 11 | . 1 4 6 . Classes Destroyed 14 | 2 7 1 3 1 Worker 6 | . 2 1 3 . Builder 11 | . 2 . 9 . Tunneler 6 | 3 1 1 1 . Hauler 8 | . 2 . 6 . Recycler 4 | 1 2 . 1 . Operator 2 | . 1 . 1 . Watcher 7 | . 3 . 4 . Swarmer 22 | . 6 5 11 . Grunt 42 | . 18 . 24 . Brawler 1 | . . . 1 . Duelist 1 | . . . 1 . Protector 1 | . . . 1 . Sentry 11 | . . 2 9 . Assembled 1 | . . . . 1 Best Kill Streak 7 | 4 6 4 7 1 Combat Bots Only 5 | . 4 3 5 1 Max Kills in Single Turn 3 | 1 2 3 3 1 Gunslinging 1 | . . . 1 . Exploded 3 | . 1 3 2 . Melee . | . . . . . Uniques/NPCs Destroyed . | . . . . . Combat | -11 -10 -10 -9 -9 -------- Run | Scr Mat Min Mat Min Damage Taken 3220 | . 810 211 1460 739 Core 2421 | . 634 171 1100 516 Absorbed by Shields . | . . . . . Redirected to Core 2095 | . 558 141 950 446 Core Remaining (%) 99 | 100 . 98 . . Volleys Fired 337 | 5 131 22 172 7 Largest 3 | 2 2 2 3 3 Hottest 135 | 40 80 80 135 135 Shots Fired 701 | 10 262 44 364 21 Gun 700 | 10 262 43 364 21 Cannon . | . . . . . Launcher 1 | . . 1 . . Special . | . . . . . Kinetic 96 | 10 86 . . . Thermal . | . . . . . Explosive 1 | . . 1 . . Electromagnetic 604 | . 176 43 364 21 Robot Hit Streak 29 | 5 11 11 29 4 Robot Miss Streak 4 | 1 4 2 4 4 Penetration Max . | . . . . . Secondary Targets 13 | . 5 1 6 1 Max Gunslinging Chain 1 | . 1 1 1 1 Shots Hit Robots 317 | 6 105 14 176 16 Core Hits 185 | 4 48 11 116 6 Critical Hits 3 | . 2 . 1 . Critical Kills . | . . . . . Critical Parts Destroyed 3 | . 2 . 1 . Melee Attacks 2 | . . . 2 . Impact . | . . . . . Slashing 2 | . . . 2 . Piercing . | . . . . . Sneak Attacks 1 | . . . 1 . Combat Hostiles . | . . . . . Follow-up Attacks . | . . . . . Damage Inflicted 6283 | 62 1595 625 3911 90 Guns 4492 | 62 1445 167 2728 90 Cannons . | . . . . . Explosions 1700 | . 150 458 1092 . Melee 91 | . . . 91 . Ramming . | . . . . . Kinetic 822 | 62 760 . . . Thermal 1282 | . 150 307 825 . Explosive 373 | . . 151 222 . Electromagnetic 3715 | . 685 167 2773 90 Impact . | . . . . . Slashing 91 | . . . 91 . Piercing . | . . . . . Highest Corruption 5 | . 2 2 5 5 Average Corruption 2 | . 2 2 1 5 Corruption Purged . | . . . . . Effects 51 | . 16 4 29 2 Message Errors 9 | . 3 1 5 . Matter Fused 4 | . . . 4 . Heat Flow Errors 6 | . 2 . 3 1 Energy Discharges 8 | . 2 2 4 . Data Loss (minor) 7 | . 3 . 4 . Targeting Errors 15 | . 6 1 7 1 Weapon Failures 2 | . . . 2 . Overload Shots . | . . . . . Overflow Damage 96 | . 14 33 49 . Projectiles . | . . . . . Explosions 96 | . 14 33 49 . Melee . | . . . . . Knockbacks . | . . . . . Impact . | . . . . . Kinetic . | . . . . . Secondary . | . . . . . Self-Inflicted Damage 228 | . 130 . 98 . Shots 7 | . 3 . 4 . Rammed . | . . . . . Targets Rammed . | . . . . . Kicked . | . . . . . Crushed . | . . . . . Highest Temperature 298 | . 298 189 259 245 Average Temperature 80 | . 79 64 84 115 Received Heat Transfer 931 | . 297 54 420 160 Effects 2 | . . . . 2 Interference 2 | . . . . 2 Siege Activations . | . . . . . Robots Corrupted 2 | . 1 . 1 . Combat Hostiles 1 | . . . 1 . Parts Fried 17 | . 3 . 14 . Impact Corruptions . | . . . . . Robots Melted . | . . . . . Combat Hostiles . | . . . . . Parts Melted 2 | . . 1 1 . Heat Transferred 1502 | . 200 350 952 . Parts Sabotaged . | . . . . . Parts Stolen . | . . . . . Parts Stripped . | . . . . . Power Chain Reactions 18 | . 3 . 15 . Missiles Intercepted . | . . . . . Alert | -11 -10 -10 -9 -9 ------- Run | Scr Mat Min Mat Min Peak Influence 753 | 20 401 340 753 293 Average Influence 316 | 6 160 149 440 291 Maximum Alert Level 3 | . 2 1 3 1 Low Security (%) 33 | 100 64 60 11 . Level 1 30 | . 35 39 24 100 Level 2 31 | . . . 56 . Level 3 4 | . . . 7 . Level 4 . | . . . . . Level 5 . | . . . . . High Security . | . . . . . Max Security . | . . . . . Squads Dispatched 15 | . 6 . 9 . Investigation 9 | . 6 . 3 . Extermination . | . . . . . Reinforcement 5 | . . . 5 . Assault 1 | . . . 1 . Garrison . | . . . . . Intercept . | . . . . . Construction Impeded 3 | . . . 3 . Haulers Reinforced . | . . . . . Stealth | -11 -10 -10 -9 -9 --------- Run | Scr Mat Min Mat Min Distress Signals 5 | . 2 . 3 . Communications Jammed . | . . . . . Distress Signals . | . . . . . Times Spotted 122 | . 30 7 70 15 Peak Tracking Total 19 | . 6 3 6 19 Tactical Retreats 9 | . . 1 7 1 Traps | -11 -10 -10 -9 -9 ------- Run | Scr Mat Min Mat Min Traps Triggered 8 | . 3 . 5 . Indirectly . | . . . . . Trap Hack Attempts . | . . . . . Triggered . | . . . . . Disarmed . | . . . . . Reprogrammed 6 | . . . 6 . Reused 2 | . . . 2 . Traps Extracted . | . . . . . Installed . | . . . . . Triggered 2 | . . . 2 . Machines | -11 -10 -10 -9 -9 ---------- Run | Scr Mat Min Mat Min Machines Disabled 48 | . 17 15 16 . Max in Single Turn 6 | . 2 6 2 . Machines Sabotaged . | . . . . . Garrisons Compromised . | . . . . . Overloaded Fab Kills . | . . . . . Fab Network Shutdowns . | . . . . . Hacking | -11 -10 -10 -9 -9 --------- Run | Scr Mat Min Mat Min Machines Accessed 18 | . 10 . 8 . Terminals 14 | . 8 . 6 . Fabricators . | . . . . . Repair Stations . | . . . . . Recycling Units 4 | . 2 . 2 . Scanalyzers . | . . . . . Garrison Access . | . . . . . Total Hacks 51 | . 32 . 19 . Successful 28 | . 18 . 10 . Failed 23 | . 14 . 9 . Catastrophic 6 | . 2 . 4 . Database Lockouts . | . . . . . Manual 30 | . 17 . 13 . Terminals 44 | . 28 . 16 . Fabricators . | . . . . . Repair Stations . | . . . . . Recycling Units 7 | . 4 . 3 . Scanalyzers . | . . . . . Garrison Access . | . . . . . Terminal Hacks 16 | . 10 . 6 . Robot Analysis 2 | . 2 . . . Prototype ID Bank 2 | . 2 . . . Branch Access Points 1 | . 1 . . . Terminal Index 1 | . 1 . . . Unreport Threat 6 | . 3 . 3 . Reprogram Traps 1 | . . . 1 . Hauler Manifests 2 | . 1 . 1 . Zone Layout 1 | . . . 1 . Fabricator Hacks . | . . . . . Repair Station Hacks . | . . . . . Recycling Unit Hacks 4 | . 2 . 2 . Retrieve Components 4 | . 2 . 2 . Scanalyzer . | . . . . . Garrison Access Hacks . | . . . . . Unauthorized Hacks 18 | . 12 . 6 . Terminals 5 | . 4 . 1 . Track 1 | . 1 . . . Assimilate 1 | . 1 . . . Botnet 2 | . 1 . 1 . Disrupt 1 | . 1 . . . Fabricators . | . . . . . Repair Stations . | . . . . . Recycling Units 3 | . 2 . 1 . Tunnel 3 | . 2 . 1 . Scanalyzers . | . . . . . Garrison Access . | . . . . . Data Cores Recovered . | . . . . . Used . | . . . . . Hacking Detections 14 | . 8 . 6 . Full Trace Events 5 | . 4 . 1 . Feedback Events . | . . . . . Feedback Blocked . | . . . . . Robot Schematics Acquired . | . . . . . Robots Built . | . . . . . Matter . | . . . . . Time . | . . . . . Total Robot Build Rating . | . . . . . Part Schematics Acquired . | . . . . . Parts Built . | . . . . . Matter . | . . . . . Time . | . . . . . Total Part Build Rating . | . . . . . Parts Repaired . | . . . . . Time . | . . . . . Parts Recycled . | . . . . . Recycled Matter . | . . . . . Retrieved Matter . | . . . . . Retrieved Components 30 | . 11 . 19 . Parts Scanalyzed . | . . . . . Part Schematics Acquired . | . . . . . Parts Damaged . | . . . . . Bothacking | -11 -10 -10 -9 -9 ------------ Run | Scr Mat Min Mat Min Used RIF Installer . | . . . . . Robots Hacked . | . . . . . Non-combat . | . . . . . Combat . | . . . . . Robot Hacks Applied . | . . . . . Relay Couplers Released . | . . . . . Robots Rewired . | . . . . . Allies Hacked . | . . . . . Hacks Repelled . | . . . . . Allies | -11 -10 -10 -9 -9 -------- Run | Scr Mat Min Mat Min Total Allies 1 | . 1 . . . Largest Group 1 | . 1 . . . Highest-Rated Group 10 | . 10 . . . Highest-Rated Ally 10 | . 10 . . . Total Orders 16 | . 16 . . . STAY 6 | . 6 . . . GOTO 3 | . 3 . . . FOLLOW 7 | . 7 . . . Ally Attacks . | . . . . . Total Damage . | . . . . . Kills . | . . . . . Allies Corrupted . | . . . . . Allies Melted . | . . . . . Intel | -11 -10 -10 -9 -9 ------- Run | Scr Mat Min Mat Min Robot Analysis Total 2 | . 2 . . . Derelict Logs Recovered 1 | . . 1 . . Drone Launches . | . . . . . Drone Recoveries . | . . . . . Exploration | -11 -10 -10 -9 -9 ------------- Run | Scr Mat Min Mat Min Turns Passed 4524 | 62 1315 536 2546 65 Spaces Moved 2430 | 40 757 441 1160 32 Core 8 | 3 . 5 . . Treads 664 | . 185 1 478 . Legs . | . . . . . Wheels 1758 | 37 572 435 682 32 Hover . | . . . . . Flight . | . . . . . Fastest Speed 50 | 50 80 90 90 100 Average Speed 114 | 78 107 91 130 100 Slowest Speed 200 | 90 160 200 190 100 Overloaded Moves . | . . . . . Propulsion Burnouts . | . . . . . Robots Hopped . | . . . . . Cave-ins Triggered . | . . . . . Exploration Rate (%) 60 | 3 92 94 95 17 Regions Visited 4 Branch Regions 2 Pre-discovered Areas 3 | . 2 . 1 . Known Exits Taken 2 | . 1 . 1 . Unknown Exits Taken 2 | 1 . 1 . . Scrap Searched 1 | . . 1 . . Spaces Dug . | . . . . . Terrain Destroyed 451 | . 141 51 259 . Melee . | . . . . . Projectile . | . . . . . AOE 451 | . 141 51 259 . Actions | -11 -10 -10 -9 -9 --------- Run | Scr Mat Min Mat Min Total 3479 | 56 999 528 1848 48 Wait 544 | 5 71 47 413 8 Move 2426 | 39 756 440 1159 32 Hop . | . . . . . Pick Up 4 | . 1 1 2 . Fast Attach 22 | 7 2 2 10 1 Attach . | . . . . . Detach 1 | . . . 1 . Swap 9 | . . 4 5 . Drop 17 | . 3 2 12 . Fire 337 | 5 131 22 172 7 Melee 2 | . . . 2 . Ram . | . . . . . Kick . | . . . . . Crush . | . . . . . Escape Stasis . | . . . . . Rewire . | . . . . . Trap . | . . . . . Miscellaneous 117 | . 35 10 72 . Route ------- -11/Scrapyard -10/Materials (discovered 4 exits: *Mat x3 / *Min) -10/Mines (discovered 2 exits: *Mat x2) -9/Materials (discovered 6 exits: [*Mat x3] / *Min x2 / [*Sto]) -9/Mines History --------- Turn | Location | Event 2 | -11/Scrapyard | Upgraded with Propulsion slot (x1) 2 | -11/Scrapyard | Upgraded with Utility slot (x1) 2 | -11/Scrapyard | Upgraded with Weapon slot (x1) 24 | -11/Scrapyard | Discovered new exit (range 15) 63 | -11/Scrapyard | Entered Materials 72 | -10/Materials | Identified exit to Mines 300 | -10/Materials | Discovered new exit (range 11) 308 | -10/Materials | Build established: Mutant 404 | -10/Materials | Discovered new exit (range 8) 418 | -10/Materials | Reached level 2 588 | -10/Materials | Discovered new exit (range 16) 718 | -10/Materials | Reached level 3 1318 | -10/Materials | Reached level 4 1378 | -10/Materials | Entered Mines 1389 | -10/Mines | Discovered new exit (range 14) 1401 | -10/Mines | Received a Rocket Launcher from a helpful Derelict 1528 | -10/Mines | Upgraded with Utility slot (x2) 1669 | -10/Mines | Discovered new exit (range 16) 1773 | -10/Mines | Reached level 5 1824 | -10/Mines | Build established: Skirmisher 1914 | -10/Mines | Entered Materials 1915 | -9/Materials | Identified exit to Mines 1916 | -9/Materials | Reached level 6 2102 | -9/Materials | Reached level 7 2487 | -9/Materials | Reached level 8 2656 | -9/Materials | Upgraded with Weapon slot (x1) 2964 | -9/Materials | Build established: Assassin 3007 | -9/Materials | Reached level 9 3150 | -9/Materials | Discovered new exit (range 12) 3157 | -9/Materials | Discovered new exit (range 16) 3744 | -9/Materials | Discovered new exit (range 15) 4291 | -9/Materials | Discovered new exit (range 16) 4302 | -9/Materials | Build established: Skirmisher 4306 | -9/Materials | Upgraded with Utility slot (x1) 4314 | -9/Materials | First assault squad dispatched 4353 | -9/Materials | Reached level 10 4460 | -9/Materials | Entered Mines 4480 | -9/Mines | Assembled infested the area 4521 | -9/Mines | Core integrity fell below 50% 4525 | -9/Mines | Self-destructed Last Messages --------------- 04371_ Used Protomatter to restore part integrity (+22, depleted) 04372_ Acquired 29 matter. 04378_ F3K Map ----- +----------------------------------------------------+ | ?????????????????????????????????????????????????? | | ?????????????????????????????????????????????????? | | ?????????????????????????????????????????????????? | | ?????????????????????????????????????????????????? | | ?????????????????????????????????????????????????? | | ?????????????????????????????????????????????????? | | ?????????????????????????????????????????????????? | | ?????????????????????????????????????????????????? | | ?????????????????????????????????????????????????? | | ????????????????????????? ???????????????????????? | | ????????????????????? ? ??????????????????? | | ??????????????????### ?### ? ????????????????? | | ????????????????##### ####? ? ??????????????? | | ???????????????##### ?##### ? ?????????????? | | ?????????????? ####### ????????????? | | ?????????????######## ########## ###???????????? | | ????????????#####?### #########?###?##??????????? | | ????????????######### ################??????????? | | ???????????########## ##############?##?????????? | | ??????????########### ################?????????? | | ??????????#?###?##?# ? ##################???????? | | ?????????? ######## ### ##########?#????????? | | ??????????? ##?##### ### ###########?#??????? | | ?????????? ####?## #? # a #####?######???????? | | ?????????? ##??### #aaa ###########????????? | | ?????????# #### #@a #####?#####???????? | | ?????????### ### ## ##aa a ########??????? | | ?????????######### #### ###aa a ######???????? | | ?????????######### #### ### #####??#?????? | | ??????????#######? #### ### ####?#??????? | | ????????? #### #####??????? | | ????????#??#####?#?####### ##?????????? | | ????????##########?######## #####??????? | | ????????????## ######## ####????????? | | ?????????#??##?############ ###?????????? | | ???????????### #####?###### #####??????? | | ??????????#? ? ####?####### ##?#??????? | | ??????????# ########### ##?#?????? | | ?????????????? ####?#### #?#?????? | | ???????????? ? ? ######## #?#?????? | | ???????????? ? ?? ??### ##???????? | | ???????????? ? ?##?# ###???????? | | ?????????????#?#?###?# #??#?#????? | | ?????????????????##### ####??????? | | ??????????????????##?## ## #####??????? | | ??????????????????#?##### #### ##??????????? | | ??????????????????#???#?###?##?#######?##??#?????? | | ????????????????????####???##???#?###??#?????????? | | ?????????????????###??#?###?#?#??##??##??????????? | | | +----------------------------------------------------+ Best States ------------- Heat Dissipation 49 Energy Generation 14 Energy Capacity 280 Matter Stores 300 Matter Capacity 300 Sight Range 16 Robot Scan Range 12 Terrain Scan Range 16 Terrain Scan Density 510 Armor Coverage 375 Resistance: KI 10 Weapon Shielding 66 Evasion (%) 44 Targeting Accuracy 5 Armor Integrity Analysis 33 Recoil Reduction 1 Item Schematics ----------------- None Robot Schematics ------------------ None Fabricated ------------ Nothing Alien Tech Used ----------------- None Achievements -------------- None Challenges ------------ None RPGLIKE | -11 -10 -10 -9 -9 --------- Run | Scr Mat Min Mat Min Levels Raised 9 | . 3 1 5 . XP Earned 16752 | 3000 4649 2118 6815 170 XP Spent 8755 | 2450 450 2575 3280 . Upgrades 32 | 10 2 8 12 . Propulsion Slot 1 | 1 . . . . Utility Slot 4 | 1 . 2 1 . Weapon Slot 2 | 1 . . 1 . Core Integrity 4 | . . . 4 . Heat Dissipation 4 | . . . 4 . Mass Support 1 | . . . 1 . Inventory Capacity 2 | . 1 . 1 . Sensor Range 6 | . . 6 . . Terrain Scan Density 5 | 5 . . . . Melee Accuracy 1 | . 1 . . . KI Resistance % 2 | 2 . . . . Protomatter Created 1064 | . 348 66 650 . Integrity Restored 2328 | . 720 195 1413 . Core 1905 | . 629 167 1109 . Parts 423 | . 91 28 304 . Protomatter Decayed 256 | . 105 . 115 36 Game ------ Seed UltimateExperimentalAutogun Manual? 0 Play Time 00:32:58 Cumulative 425.1 hours Start 2019.12.17 @ 11:45:41 End 2019.12.17 @ 12:17:52 Sessions 1 Manual Loads 0 Difficulty Rogue Special Mode Winter2019/RPGLIKE Game No. 320 Rogue 316 Adventurer 4 Explorer 0 Win Type - Total 35 Types 28/3/1/1/2/0/0 Lore% 93 Gallery% 94 Achievement% 89 Wizard Run 0 Options --------- ASCII 0 Keyboard 1 Movement Vi Keybinds 0 Fullscreen 0 Font 16/Terminus Map View 76x50 Tactical HUD 1 Map Filters NONE Filters NONE Steam 1 RUN: 44ae900c-e6c9-46bb-a62a-fd8eb4f73a3d